Cogmind - Beta 13 @@@ ROGUE MODE // 2024.07.26 @ 02:32:59 Player: Hiredgoonthug Result: Destroyed by G-47 Trooper with Particle Gun Performance ------------- Evolutions (2) 1000 Regions Visited (4) 800 Robots Destroyed (37) 185 Value Destroyed (642) 642 Prototype IDs (1) 20 Alien Tech Used (0) 0 Bonus (0) 0 TOTAL SCORE: 2647 Bonus ------- None Cogmind --------- Core Integrity 0/550 Matter 232/300 Energy 98/100 System Corruption 0% Temperature Cool (9) Movement Core (50) Location -8/Materials Parts ------- > --- POWER (1) -------- (None) > --- PROPULSION (4) --- (None) > --- UTILITY (4) ------ Improved Targeting Computer Improved Targeting Computer > --- WEAPON (2) ------- (None) > --- INVENTORY (5) ---- (None) Peak State ------------ > --- POWER ------------ Light Ion Engine > --- PROPULSION ------- Flight Unit Flight Unit Flight Unit VTOL Module > --- UTILITY ---------- Small Storage Unit Improved Targeting Computer Improved Targeting Computer Hardened Light Armor Plating > --- WEAPON ----------- EM Pulse Gun Heavy Assault Rifle > --- INVENTORY -------- Improved Ion Engine Flight Unit [Rating: 16] Favorites ----------- Power Light Nuclear Core Engine Ion Engine Power Core Light Nuclear Core Propulsion Light Treads Treads Light Treads Leg Aluminum Leg Flight Unit Flight Unit Utility Small Storage Unit Device Seismic Detector Storage Small Storage Unit Processor Improved Targeting Computer Protection Light Armor Plating Weapon Assault Rifle Energy Gun Small Laser Energy Cannon Light EM Pulse Cannon Ballistic Gun Assault Rifle Build | -11 -10 -10 -9 -8 ------- Run | Yrd Mat Min Mat Mat Slots Evolved 4 | . . . 2 2 Power . | . . . . . Propulsion 2 | . . . 2 . Utility 2 | . . . . 2 Weapon . | . . . . . Parts Attached 39 | 8 3 7 12 9 Power 7 | 1 1 2 2 1 Engine 5 | 1 . 1 2 1 Core 2 | . 1 1 . . Reactor . | . . . . . Propulsion 11 | 2 1 2 4 2 Treads 2 | . . 2 . . Leg 3 | 2 1 . . . Wheel . | . . . . . Hover . | . . . . . Flight 6 | . . . 4 2 Utility 8 | 2 . 1 2 3 Device 1 | 1 . . . . Storage 1 | 1 . . . . Processor 2 | . . . 1 1 Hackware . | . . . . . Protection 4 | . . 1 1 2 Artifact . | . . . . . Weapon 13 | 3 1 2 4 3 Energy Gun 3 | 2 . . 1 . Energy Cannon 2 | . . 1 1 . Ballistic Gun 8 | 1 1 1 2 3 Ballistic Cannon . | . . . . . Launcher . | . . . . . Special Weapon . | . . . . . Impact Weapon . | . . . . . Slashing Weapon . | . . . . . Piercing Weapon . | . . . . . Special Melee Weapon . | . . . . . Unidentified Prototypes 1 | . . . . 1 Parts Lost 19 | . . 3 . 16 Power 3 | . . 1 . 2 Propulsion 6 | . . . . 6 Utility 3 | . . 1 . 2 Weapon 7 | . . 1 . 6 Highest Loss Streak 13 | . . 3 . 13 To Critical Strikes . | . . . . . Average Slot Usage (%) 85 | . 100 96 77 48 Engine 6 | . 7 9 5 5 Core 4 | . 6 3 5 . Treads 12 | . . 21 20 . Leg 9 | . 28 6 . . Flight 2 | . . . 2 10 Device 4 | . 14 2 . . Storage 11 | . 14 14 11 3 Processor 1 | . . . . 18 Protection 6 | . . 10 10 3 Energy Gun 3 | . 11 . . 2 Energy Cannon 7 | . . 5 15 . Ballistic Gun 12 | . 16 21 6 4 Naked Turns . | . . . . . Heaviest Build 24 | 14 14 17 24 13 Greatest Support 40 | 20 20 40 40 16 Greatest Overweight (x) 3 | 2 . . . 3 Average Overweight (x) . | . . . . . Largest Inventory Capacity 8 | 8 8 8 8 8 Average Capacity 7 | 7 8 8 8 6 Most Carried 8 | 8 8 7 8 3 Average Carried 5 | 5 6 5 6 1 Final Capacity 8 | 8 8 8 8 5 Final Carried 7 | 6 7 5 4 . Class Distribution -------------------- 88% | Mutant 7% | Scavenger-Mutant Dominant Class ---------------- Mutant | -10/Materials Mutant | -10/Mines Mutant | -9/Materials Mutant | -8/Materials Resources | -11 -10 -10 -9 -8 ----------- Run | Yrd Mat Min Mat Mat Matter Collected 682 | 241 147 94 146 54 Remotely . | . . . . . Salvage Created 1088 | 11 312 278 324 163 Parts 78 | 3 15 16 29 15 Haulers Intercepted 1 | . . . . 1 Recyclers Shooed 4 | . 3 1 . . Parts Field Recycled . | . . . . . Retrieved Matter . | . . . . . Parts Self-Destructed . | . . . . . Prevented . | . . . . . Kills | -11 -10 -10 -9 -8 ------- Run | Yrd Mat Min Mat Mat Combat Hostiles Destroyed 26 | . 6 5 10 5 Guns 15 | . 6 3 1 5 Cannons 11 | . . 2 9 . Classes Destroyed 8 | 1 4 1 1 1 Worker 1 | . . 1 . . Tunneler 2 | 1 . . . 1 Hauler 1 | . . . . 1 Recycler 3 | . 1 2 . . Watcher 4 | . 1 . 2 1 Swarmer 17 | . 2 3 7 5 Grunt 7 | . 4 2 1 . Sentry 2 | . . . 2 . Best Kill Streak 8 | 1 3 4 3 8 Combat Bots Only 3 | . 2 3 3 3 Max Kills in Single Turn 2 | 1 1 1 1 2 Gunslinging . | . . . . . Exploded . | . . . . . Melee . | . . . . . Uniques/NPCs Destroyed . | . . . . . Combat | -11 -10 -10 -9 -8 -------- Run | Yrd Mat Min Mat Mat Hostile Shots Fired 304 | . 28 69 42 165 Missed 103 | . 10 21 14 58 Damage Taken 2314 | . 215 409 280 1410 Core 697 | . 27 88 18 564 Absorbed by Shields . | . . . . . Core Remaining (%) 83 | 100 . 54 95 . Volleys Fired 117 | 2 24 30 26 35 Largest 2 | 2 2 2 2 2 Hottest 116 | 60 60 80 116 63 Shots Fired 196 | 4 47 47 52 46 Gun 149 | 4 47 38 14 46 Cannon 47 | . . 9 38 . Launcher . | . . . . . Special . | . . . . . Kinetic 111 | 2 24 38 12 35 Thermal 46 | 2 23 9 12 . Explosive . | . . . . . Electromagnetic 39 | . . . 28 11 Robot Hit Streak 12 | 1 6 10 8 12 Robot Miss Streak 5 | 1 4 5 4 2 Penetration Max . | . . . . . Secondary Targets 2 | . . . . 2 Max Gunslinging Chain 1 | . . . . 1 Shots Hit Robots 113 | 2 26 26 27 32 Core Hits 54 | 1 15 11 14 13 Critical Kills 1 | . . 1 . . Critical Parts Destroyed . | . . . . . Critical Strikes 1 | . . 1 . . Destroy 1 | . . 1 . . Melee Attacks . | . . . . . Impact . | . . . . . Slashing . | . . . . . Piercing . | . . . . . Sneak Attacks . | . . . . . Combat Hostiles . | . . . . . Follow-up Attacks . | . . . . . Damage Inflicted 1675 | 22 337 314 559 443 Guns 994 | 22 335 146 48 443 Cannons 646 | . . 159 487 . Explosions 24 | . . . 24 . Melee . | . . . . . Ramming 11 | . 2 9 . . Kinetic 750 | . 192 146 48 364 Thermal 454 | 22 143 159 130 . Explosive . | . . . . . Electromagnetic 460 | . . . 381 79 Impact . | . . . . . Slashing . | . . . . . Piercing . | . . . . . Highest Corruption . | . . . . . Average Corruption . | . . . . . Corruption Purged . | . . . . . Corruption Blocked . | . . . . . Overload Shots . | . . . . . Overflow Damage . | . . . . . Projectiles . | . . . . . Explosions . | . . . . . Melee . | . . . . . Knockbacks . | . . . . . Impact . | . . . . . Kinetic . | . . . . . Secondary . | . . . . . Self-Inflicted Damage . | . . . . . Shots . | . . . . . Rammed 3 | . . 3 . . Targets Rammed 5 | . 1 4 . . Kicked 1 | . 1 . . . Crushed 1 | . . 1 . . Highest Temperature 504 | . 78 348 504 9 Average Temperature 99 | . 25 143 123 4 Received Heat Transfer 798 | . 81 60 54 603 Effects 4 | . . . 4 . Shutdowns 1 | . . . 1 . Energy Bleed 1 | . . . 1 . Interference 2 | . . . 2 . Siege Activations . | . . . . . Robots Corrupted . | . . . . . Combat Hostiles . | . . . . . Parts Fried 3 | . . . 3 . Impact Corruptions . | . . . . . Robots Melted . | . . . . . Combat Hostiles . | . . . . . Parts Melted . | . . . . . Heat Transferred 930 | 50 325 333 222 . Parts Sabotaged . | . . . . . Parts Stolen . | . . . . . Parts Stripped . | . . . . . Power Chain Reactions 1 | . . . 1 . Alert | -11 -10 -10 -9 -8 ------- Run | Yrd Mat Min Mat Mat Peak Influence 226 | 5 85 134 226 206 Initial 79 | . 3 27 52 79 Average 71 | 1 32 73 99 129 Maximum Alert Level 1 | . . . 1 1 Low Security (%) 97 | 100 100 100 92 98 Level 1 2 | . . . 7 1 Level 2 . | . . . . . Level 3 . | . . . . . Level 4 . | . . . . . Level 5 . | . . . . . High Security . | . . . . . Max Security . | . . . . . Squads Dispatched 2 | . 1 . 1 . Investigation 1 | . 1 . . . Extermination . | . . . . . Reinforcement 1 | . . . 1 . Assault . | . . . . . Garrison . | . . . . . Intercept . | . . . . . Searches Triggered . | . . . . . Construction Impeded . | . . . . . Haulers Reinforced . | . . . . . Active Scanning Responses . | . . . . . Cargo Convoy Interrupts . | . . . . . Stealth | -11 -10 -10 -9 -8 --------- Run | Yrd Mat Min Mat Mat Distress Signals 3 | . 1 . . 2 Communications Jammed . | . . . . . Distress Signals . | . . . . . Times Spotted 43 | . 9 5 17 12 Peak Tracking Total 7 | . 4 3 4 7 Tactical Retreats 2 | . . . 1 1 Traps | -11 -10 -10 -9 -8 ------- Run | Yrd Mat Min Mat Mat Traps Triggered 2 | . 2 . . . Indirectly . | . . . . . Trap Hack Attempts . | . . . . . Triggered . | . . . . . Disarmed . | . . . . . Reprogrammed . | . . . . . Reused . | . . . . . Traps Extracted . | . . . . . Installed . | . . . . . Triggered . | . . . . . Machines | -11 -10 -10 -9 -8 ---------- Run | Yrd Mat Min Mat Mat Machines Disabled 1 | . . . 1 . Max in Single Turn 1 | . . . 1 . Machines Repaired . | . . . . . Machines Dismantled . | . . . . . Machines Sabotaged . | . . . . . Overloaded Fab Kills . | . . . . . Hacking | -11 -10 -10 -9 -8 --------- Run | Yrd Mat Min Mat Mat Machines Accessed 1 | . . 1 . . Terminals 1 | . . 1 . . Fabricators . | . . . . . Repair Stations . | . . . . . Recycling Units . | . . . . . Scanalyzers . | . . . . . Garrison Access . | . . . . . Total Hacks 2 | . . 2 . . Successful 2 | . . 2 . . Failed . | . . . . . Catastrophic . | . . . . . Database Lockouts . | . . . . . Manual . | . . . . . Terminals 2 | . . 2 . . Fabricators . | . . . . . Repair Stations . | . . . . . Recycling Units . | . . . . . Scanalyzers . | . . . . . Garrison Access . | . . . . . Terminal Hacks 2 | . . 2 . . Record 2 | . . 2 . . Fabricator Hacks . | . . . . . Repair Station Hacks . | . . . . . Recycling Unit Hacks . | . . . . . Scanalyzer . | . . . . . Garrison Access Hacks . | . . . . . Unauthorized Hacks . | . . . . . Terminals . | . . . . . Fabricators . | . . . . . Repair Stations . | . . . . . Recycling Units . | . . . . . Scanalyzers . | . . . . . Garrison Access . | . . . . . Data Cores Recovered . | . . . . . Used . | . . . . . Hacking Detections . | . . . . . Full Trace Events . | . . . . . Feedback Events . | . . . . . Feedback Blocked . | . . . . . Robot Schematics Acquired . | . . . . . Robots Built . | . . . . . Authchips . | . . . . . Time . | . . . . . Total Robot Build Rating . | . . . . . Part Schematics Acquired . | . . . . . Parts Built . | . . . . . Authchips . | . . . . . Time . | . . . . . Total Part Build Rating . | . . . . . Parts Repaired . | . . . . . Time . | . . . . . Parts Recycled . | . . . . . Recycled Matter . | . . . . . Retrieved Matter . | . . . . . Retrieved Components . | . . . . . Parts Scanalyzed . | . . . . . Part Schematics Acquired . | . . . . . Parts Damaged . | . . . . . Bothacking | -11 -10 -10 -9 -8 ------------ Run | Yrd Mat Min Mat Mat Used RIF Installer . | . . . . . Robots Hacked . | . . . . . Non-combat . | . . . . . Combat . | . . . . . Robot Hacks Applied . | . . . . . Relay Couplers Released . | . . . . . Fabnet Peak Effective % . | . . . . . Robots Rewired . | . . . . . Allies Hacked . | . . . . . Hacks Repelled . | . . . . . Allies | -11 -10 -10 -9 -8 -------- Run | Yrd Mat Min Mat Mat Total Allies . | . . . . . Largest Group . | . . . . . Highest-Rated Group . | . . . . . Highest-Rated Ally . | . . . . . Total Orders . | . . . . . Ally Attacks . | . . . . . Total Damage . | . . . . . Kills . | . . . . . Allies Corrupted . | . . . . . Allies Melted . | . . . . . Intel | -11 -10 -10 -9 -8 ------- Run | Yrd Mat Min Mat Mat Robot Analysis Total . | . . . . . Derelict Logs Recovered 1 | . . 1 . . Drone Launches . | . . . . . Drone Recoveries . | . . . . . Exploration | -11 -10 -10 -9 -8 ------------- Run | Yrd Mat Min Mat Mat Turns Passed 1979 | 151 550 373 718 187 Spaces Moved 1127 | 105 287 185 442 108 Core 88 | 8 . . . 80 Treads 502 | . . 150 352 . Legs 419 | 97 287 35 . . Wheels . | . . . . . Hover . | . . . . . Flight 118 | . . . 90 28 Fastest Speed 29 | 50 120 120 29 29 Average Speed 127 | 116 120 152 133 86 Slowest Speed 200 | 150 120 160 160 200 Overloaded Moves . | . . . . . Propulsion Burnouts . | . . . . . Robots Hopped . | . . . . . Cave-ins Triggered . | . . . . . Exploration Rate (%) 27 | 5 51 39 30 14 Regions Visited 4 Branch Regions 1 Pre-discovered Areas 1 | . . 1 . . Known Exits Taken . | . . . . . Unknown Exits Taken 4 | 1 1 1 1 . Scrap Searched 1 | . . 1 . . Spaces Dug . | . . . . . Terrain Destroyed 6 | . . . 6 . Melee . | . . . . . Projectile . | . . . . . AOE 6 | . . . 6 . Terrain Rammed . | . . . . . Walls Destroyed . | . . . . . Machines Disabled . | . . . . . Actions | -11 -10 -10 -9 -8 --------- Run | Yrd Mat Min Mat Mat Total 1488 | 130 447 232 520 159 Wait 140 | . 123 . 17 . Move 1123 | 104 286 184 441 108 Hop . | . . . . . Pick Up 40 | 14 5 4 12 5 Fast Attach . | . . . . . Attach 26 | 8 . 3 5 10 Detach 3 | 1 . . 1 1 Swap 14 | . 3 4 7 . Drop 20 | 1 5 3 11 . Fire 117 | 2 24 30 26 35 Melee . | . . . . . Ram . | . . . . . Kick 1 | . 1 . . . Crush 4 | . . 4 . . Escape Stasis . | . . . . . Rewire . | . . . . . Trap . | . . . . . Miscellaneous . | . . . . . Route ------- -11/Scrapyard -10/Materials (discovered 2 exits: [*Mat] / *Min) -10/Mines (discovered 2 exits: [*Mat x2]) -9/Materials -8/Materials History --------- Turn | Location | Event 11 | -11/Scrapyard | Discovered new exit (range 15) 152 | -11/Scrapyard | Entered Materials 305 | -10/Materials | Build established: Mutant 440 | -10/Materials | Discovered new exit (range 16) 672 | -10/Materials | Discovered new exit (range 15) 702 | -10/Materials | Entered Mines 712 | -10/Mines | Met a Derelict bent on vengeance 805 | -10/Mines | Lost 3 parts (1p1u1w) 938 | -10/Mines | Learned location of Storage (-7) 994 | -10/Mines | Discovered new exit (range 3) 1054 | -10/Mines | Discovered new exit (range 12) 1075 | -10/Mines | Entered Materials 1075 | -9/Materials | Evolved 2 slots: Propulsion x2 1447 | -9/Materials | Discovered new exit (range 9) 1793 | -9/Materials | Entered another Materials area 1793 | -8/Materials | Evolved 2 slots: Utility x2 1887 | -8/Materials | Core integrity fell below 50% 1940 | -8/Materials | Lost 13 parts (1p6n1u5w) 1959 | -8/Materials | Core integrity fell below 20% 1980 | -8/Materials | Destroyed by G-47 Trooper with Particle Gun Last Messages --------------- K-01 Serf collects debris. Sml. Storage Unit destroyed. Acquired Lgt. Assault Rifle. K-01 Serf destroyed. Lgt. Assault Rifle destroyed. Acquired 18 matter. Acquired Prototype Energy Gun. Identified Adv. Beam Rifle. Faulty integration triggers meltdown. Imp. Ion Engine damaged (-18). Scanalyzer disabled. Acquired 12 matter. Imp. Ion Engine destroyed. Critical hit (Burn: +37). Acquired 11 matter. Acquired 13 matter. Hrd. Light Armor Plating destroyed. Acquired Lgt. Assault Rifle. Lgt. Assault Rifle destroyed. G-47 Trooper destroyed. Map ----- +----------------------------------------------------+ | | | | | | | | | | | ???????????????????????????????????? | | ???????????????????????????????????? | | ????????###########????????????????? | | ????????# #????????????????? | | ????????# #????###########?? | | ????????# #????# * #?? | | ????????# #????# !!! #?? | | ????????# #????# """!!= #?? | | ?????#### #????# """%!= #?? | | ?????# # ###### """ "" #?? | | ?????# # # !!## """ #?? | | ?????# ##+#####+## !!## " #?? | | ?????# ||## % #?? | | ?????# ||######/####### | | ########## !!#??# = * | | ? # !!#??# | | #""" # ########* % | | #""" # g Y !%!%= * | | #""" # == %! | | # # %= =%! ##### | | #""" + @ #???? | | #""" # #???? | | #""" # ##+##########+####???? | | # * ###### ?????????? ??????? | | ?#########???????????????? ??????? | | ?????????????????????????? ??????? | | ??????????????????????????"""??????? | | ?????????????????????????""""??????? | | ??????????????????????????"""??????? | | ???????????????????????????????????? | | ???????????????????????????????????? | | ???????????????????????????????????? | | ???????????????????????????????????? | | ???????????????????????????????????? | | ???????????????????????????????????? | | ???????????????????????????????????? | | ???????????????????????????????????? | | ???????????????????????????????????? | | ???????????????????????????????????? | | ???????????????????????????????????? | | ???????????????????????????????????? | | ???????????????????????????????????? | | ???????????????????????????????????? | | ???????????????????????????????????? | | ???????????????????????????????????? | +----------------------------------------------------+ Best States ------------- Heat Dissipation 31 Energy Generation 14 Energy Capacity 265 Matter Stores 300 Matter Capacity 300 Sight Range 16 Terrain Scan Density 10 Armor Coverage 150 Evasion (%) 64 Targeting Accuracy 12 Recoil Reduction 2 Item Schematics ----------------- None Robot Schematics ------------------ None Fabricated ------------ Nothing Alien Tech Used ----------------- None Achievements -------------- Loot Pinata Challenges ------------ None Game ------ Seed MappingSwordRail Manual? 0 Play Time 00:26:56 Cumulative 2.7 hours Start 2024.07.26 @ 01:02:27 End 2024.07.26 @ 02:32:59 Sessions 3 Manual Loads 0 Difficulty Rogue Special Mode None Game No. 3 Rogue 3 Adventurer 0 Explorer 0 Win Type - Total 0 Types 0/0/0/0/0/0/0/0/0 Lore% 7 Gallery% 6 Achievement% 6 Wizard Run 0 Options --------- Layout 0 ASCII 0 Keyboard 0 Movement Mouse Keybinds 0 Fullscreen 2 Font 24/Smallcaps Map View 76x50 Zoom Use 0% Tactical HUD 0 Map Filters NONE Filters NONE Steam 1 RUN: 2bad3373-c4cc-4c96-b8a6-1750d4a260a5